bitfinex/quotes_ETHUSD_20241023
["timestamp","ask_amount","ask_price","bid_price","bid_amount"]
[1729646933367,5.1075967,2622.4,2622.0,1.19396292]
[1729646933585,5.1075967,2622.4,2621.9,4.62648292]
[1729646933744,4.2493,2622.3,2622.0,1.19396292]
[1729646934148,1.6755567,2622.2,2621.9,1.19396292]
[1729646934474,1.6755567,2622.2,2621.8,2.37386491]
[1729646934475,5.9252467,2622.0,2621.8,1.19396292]
[1729646934648,4.24969,2622.0,2621.8,1.19396292]
[1729646935234,0.8172,2622.0,2621.8,1.19396292]
[1729646937032,5.1078067,2622.2,2621.8,1.19396292]
[1729646937033,3.43236,2622.1,2621.8,1.19396292]
[1729646937961,1.6755567,2622.1,2621.8,1.19396292]
[1729646938177,3.4325,2622.0,2621.8,1.19396292]
[1729646939177,3.43238,2622.1,2621.8,1.19396292]
[1729646940214,3.43238,2622.1,2621.7,1.19396292]
[1729646940387,3.43238,2622.1,2621.8,1.19396292]
[1729646940583,3.43238,2622.1,2621.7,1.19396292]
[1729646941412,5.9250067,2622.2,2621.8,1.19396292]
[1729646941708,9.3573467,2622.2,2621.8,1.19396292]
[1729646942009,3.43236,2622.1,2621.8,1.19396292]
[1729646942613,5.1081767,2621.9,2621.7,1.19396292]
[1729646942820,0.8172,2621.8,2621.6,1.19396292]
[1729646943017,3.43243,2622.1,2621.6,4.62687292]
[1729646943235,3.43243,2622.1,2621.7,1.98386292]
[1729646944334,3.43243,2622.1,2621.8,1.19396292]
[1729646944533,3.43229,2622.2,2621.7,5.41673292]
[1729646944734,3.43236,2622.1,2621.7,1.98386292]
[1729646944903,3.43236,2622.1,2621.8,1.19396292]
[1729646945841,3.43236,2622.1,2621.7,0.7899]
[1729646946036,3.43229,2622.2,2621.7,5.25861661]
[1729646946209,3.43229,2622.2,2621.7,8.69142661]
[1729646946539,3.43211,2622.3,2621.9,3.4326]
[1729646946839,3.43197,2622.4,2622.0,0.7982]
[1729646948538,5.1075267,2622.4,2622.0,0.7982]
[1729646952123,3.43197,2622.4,2622.0,0.7982]
[1729646952329,5.1075267,2622.4,2622.0,0.7982]
[1729646953102,4.19754,2622.5,2622.1,3.43235]
[1729646953415,5.8730967,2622.5,2622.1,3.43235]
[1729646955401,5.8730967,2622.5,2622.0,1.99282505]
[1729646955609,5.8730967,2622.5,2622.0,6.29466957]
[1729646957829,5.8730967,2622.5,2622.0,2.86219957]
[1729646957830,3.43197,2622.4,2622.0,2.86219957]
[1729646958031,3.43197,2622.4,2622.0,1.99282505]
[1729646958877,5.1075267,2622.4,2622.0,1.99282505]
[1729646961569,1.6755567,2622.3,2622.0,1.99282505]
[1729646961861,1.6755567,2622.3,2621.9,1.19462505]
[1729646961862,3.4323,2622.2,2621.9,1.19462505]
[1729646962425,5.1079267,2622.1,2621.9,1.19462505]
[1729646962630,3.43262,2621.9,2621.8,1.19462505]
[1729646962848,5.1081767,2621.9,2621.7,1.19462505]
[1729646963059,3.43275,2621.8,2621.6,1.19462505]
[1729646965181,3.43275,2621.8,2621.5,1.99042505]
[1729646967069,5.1083067,2621.8,2621.5,1.99042505]
[1729646967293,3.43275,2621.8,2621.5,1.99042505]
[1729646968387,5.1083067,2621.8,2621.5,1.99042505]
[1729646968754,8.5411267,2621.8,2621.5,1.99042505]
[1729646969082,3.43275,2621.8,2621.5,1.99042505]
[1729646970360,3.43275,2621.8,2621.5,0.7958]
[1729646974798,3.43275,2621.8,2621.5,1.99042505]
[1729646974964,3.43275,2621.8,2621.5,0.7958]
[1729646975382,3.43275,2621.8,2621.5,1.99042505]
[1729646976196,3.43275,2621.8,2621.5,0.7958]
[1729646976360,3.43275,2621.8,2621.5,1.99042505]
[1729646978407,4.25533,2621.9,2621.5,1.99042505]
[1729646981497,4.25533,2621.9,2621.5,0.7958]
[1729646981702,4.25533,2621.9,2621.5,1.99042505]
[1729646981999,5.9308867,2621.9,2621.5,1.99042505]
[1729646982204,5.9308867,2621.9,2621.5,0.7958]
[1729646982401,5.9308867,2621.9,2621.5,1.99042505]
[1729646982705,4.25533,2621.9,2621.5,1.99042505]
[1729646982872,4.25533,2621.9,2621.5,0.7958]
[1729646983078,4.25533,2621.9,2621.5,1.99042505]
[1729646985803,4.25533,2621.9,2621.5,0.7958]
[1729646986179,4.25533,2621.9,2621.5,1.99042505]
[1729646986591,4.25533,2621.9,2621.5,0.7958]
[1729646987108,3.43257,2622.0,2621.5,2.4713567]
[1729646987277,3.43257,2622.0,2621.6,1.19462505]
[1729646987600,3.43257,2622.0,2621.6,3.43299]
[1729646989771,3.43257,2622.0,2621.6,4.62761505]
[1729646992805,3.43257,2622.0,2621.5,5.42355505]
[1729646993770,3.43257,2622.0,2621.6,1.19462505]
[1729646994773,6.86514,2622.0,2621.6,1.19462505]
[1729646994970,6.86514,2622.0,2621.5,5.42355505]
[1729646995184,3.43257,2622.0,2621.5,6.83508359]
[1729646995622,6.86513,2622.0,2621.6,1.19462505]
[1729646995919,3.43256,2622.0,2621.5,6.83508359]
[1729646996495,3.43256,2622.0,2621.6,1.19462505]
[1729647000985,3.43256,2622.0,2621.6,4.62760505]
[1729647001930,3.43256,2622.0,2621.6,1.19462505]
[1729647002283,4.20087,2622.1,2621.6,4.62757505]
[1729647002493,4.20087,2622.1,2621.6,3.92263669]
[1729647002494,0.7685,2622.1,2621.6,3.92263669]
[1729647002694,0.7795,2622.3,2621.9,2.87018175]
[1729647002989,4.21161,2622.3,2622.0,1.19462505]
[1729647004132,3.43203,2622.4,2622.0,1.19462505]
[1729647004281,3.43203,2622.4,2622.1,1.19462505]
[1729647005029,5.1075867,2622.4,2622.0,1.19462505]
[1729647005183,0.8216,2622.2,2622.0,1.19462505]
[1729647007303,0.8216,2622.2,2621.9,1.19462505]
[1729647007304,4.25391,2622.2,2621.9,1.19462505]
[1729647007510,5.9294667,2622.2,2621.9,1.19462505]
[1729647008091,0.8216,2622.2,2621.9,1.19462505]
[1729647008435,3.43218,2622.3,2621.9,5.38314505]
[1729647008792,3.43218,2622.3,2621.9,6.67686091]
[1729647011235,3.43218,2622.3,2622.0,1.19462505]
[1729647011607,3.43218,2622.3,2621.9,6.67686091]
[1729647012001,3.43218,2622.3,2622.0,1.19462505]
[1729647012424,5.9291267,2622.4,2622.0,1.19462505]
[1729647012609,1.6755567,2622.3,2622.0,1.19462505]
[1729647013936,5.1077067,2622.3,2622.0,1.19462505]
[1729647014830,3.45109,2623.1,2622.0,1.19462505]
[1729647014831,1.6755567,2622.1,2622.0,1.19462505]
[1729647015133,2.4971567,2622.1,2622.0,1.19462505]
[1729647015344,2.4971567,2622.1,2621.9,1.5928334]
[1729647015508,1.6755567,2622.0,2621.9,1.5928334]
[1729647015709,5.1081467,2622.0,2621.5,4.18898]
[1729647016331,0.8216,2621.8,2621.4,3.43319]
[1729647016718,3.43237,2622.1,2621.6,3.43301]
[1729647016719,8.5404067,2622.1,2621.6,3.43301]
[1729647017035,8.5404067,2622.1,2621.7,3.43288]
[1729647017036,0.8216,2622.0,2621.7,3.43288]
[1729647017238,4.25387,2622.2,2621.7,3.43288]
[1729647017402,5.9294267,2622.2,2621.7,3.43288]
[1729647017811,3.43237,2622.1,2621.7,3.43288]
[1729647018140,5.1079267,2622.1,2621.7,3.43288]
[1729647019815,0.7507,2621.9,2621.4,4.18908]
[1729647020148,0.7507,2621.9,2621.5,3.43305]
[1729647021009,4.18307,2622.1,2621.7,3.43287]
[1729647021363,4.18307,2622.1,2621.7,4.20217]
[1729647021544,4.18307,2622.1,2621.7,0.7693]
[1729647021710,4.18307,2622.1,2621.7,4.20218]
[1729647022246,4.18307,2622.1,2621.7,0.7693]
[1729647022813,0.7507,2622.1,2621.7,0.7693]
[1729647023031,3.4321,2622.3,2621.8,3.43275]
[1729647023352,7.61502,2622.3,2621.8,3.43275]
[1729647023711,7.61502,2622.3,2621.8,4.62669199]
[1729647024948,4.1828,2622.3,2621.8,4.62663199]
[1729647025165,0.7507,2622.3,2621.9,3.43254]
[1729647025324,0.7507,2622.3,2622.0,0.98110473]
[1729647025650,4.1828,2622.3,2622.0,0.98110473]
[1729647025861,4.1828,2622.3,2621.9,3.43254]
[1729647026723,0.7507,2622.3,2621.9,6.86509]
[1729647027056,0.7507,2622.7,2622.3,3.43208]
[1729647027258,0.7507,2622.7,2622.2,3.4322]
[1729647027259,5.8579367,2622.7,2622.2,3.4322]
[1729647027432,5.8579367,2622.7,2622.2,7.45205567]
[1729647027638,5.8579367,2622.7,2622.2,4.01985567]
[1729647028338,5.85640809,2622.7,2622.2,4.01985567]
[1729647028936,5.85640809,2622.7,2622.2,5.21379766]
[1729647029966,5.85640809,2622.7,2622.2,8.64594766]
[1729647030172,5.85640809,2622.7,2622.3,1.02378703]
[1729647030528,1.6755567,2622.6,2622.3,1.02378703]
[1729647030724,1.6755567,2622.5,2622.3,1.02378703]
[1729647030925,1.6755567,2622.5,2622.1,4.62630199]
[1729647031325,1.6755567,2622.5,2622.1,3.43236]
[1729647031663,2.4262567,2622.3,2622.0,4.62633199]
[1729647032138,2.4262567,2622.3,2622.0,3.43239]
[1729647032340,0.7507,2622.3,2622.0,1.19394199]
[1729647032534,0.7507,2622.3,2622.0,1.04204946]
[1729647032753,1.6755567,2622.2,2621.9,1.19394199]
[1729647032963,0.7507,2622.3,2621.8,2.36122265]
[1729647032964,2.4262567,2622.0,2621.8,1.19394199]
[1729647033199,2.4262567,2622.0,2621.7,1.19394199]
[1729647033474,0.7507,2622.0,2621.7,1.19394199]
[1729647034132,5.8587567,2622.0,2621.7,1.19394199]
[1729647034471,5.8587567,2622.0,2621.6,4.62687199]
[1729647034658,0.7507,2622.0,2621.6,5.7357291]
[1729647034859,0.7507,2622.0,2621.7,1.19394199]
[1729647035777,0.7507,2622.0,2621.7,4.62680199]
[1729647035981,0.7507,2622.3,2621.8,5.8774967]
[1729647036140,0.7507,2622.3,2621.8,6.3127409]
[1729647036482,2.4262567,2622.3,2621.9,4.62647199]
[1729647038378,5.8583867,2622.3,2621.9,3.43253]
[1729647038579,5.8583867,2622.3,2621.9,4.62647199]
[1729647040291,5.8583867,2622.3,2621.9,3.43253]
[1729647040495,5.8583867,2622.3,2621.9,4.62647199]
[1729647041194,5.8583867,2622.3,2621.9,1.19394199]
[1729647042789,3.43224,2622.2,2621.9,1.19394199]
[1729647043285,3.43224,2622.2,2621.8,6.3128209]
[1729647043502,3.43224,2622.2,2621.9,1.98441635]
[1729647044490,2.4262567,2622.3,2621.9,1.98441635]
[1729647044693,5.8583667,2622.3,2621.8,6.3127609]
[1729647044857,5.8583667,2622.3,2621.9,1.19394199]
[1729647045189,5.8583667,2622.3,2621.8,6.3127609]
[1729647045696,5.8583667,2622.3,2621.9,1.19394199]
[1729647046558,3.43223,2622.2,2621.9,1.19394199]
[1729647048116,3.43238,2622.1,2621.9,1.19394199]
[1729647048299,3.43238,2622.1,2621.8,1.96324199]
[1729647048496,3.43223,2622.2,2621.9,1.19394199]
[1729647048671,5.8583667,2622.3,2621.9,1.19394199]
[1729647049476,2.4262567,2622.3,2621.9,1.19394199]
[1729647049679,3.43224,2622.2,2621.9,1.19394199]
[1729647050006,5.8584267,2622.3,2621.9,1.19394199]
[1729647051713,3.43226,2622.2,2621.9,1.19394199]
[1729647052505,5.8584267,2622.3,2621.9,1.19394199]
[1729647052688,7.61508,2622.3,2621.9,2.21589184]
[1729647053815,4.18287,2622.3,2621.9,2.21589184]
[1729647054013,3.43217,2622.3,2622.0,1.19394199]
[1729647054791,3.43225,2622.2,2621.9,2.21589184]
[1729647057603,3.43225,2622.2,2621.9,1.19394199]
[1729647057806,8.5401367,2622.2,2621.9,1.19394199]
[1729647058313,5.1078067,2622.2,2621.9,1.19394199]
[1729647058523,8.5401367,2622.2,2621.9,1.19394199]
[1729647058829,5.1078067,2622.2,2621.9,1.19394199]
[1729647059124,5.9309067,2622.2,2621.9,1.19394199]
[1729647059292,3.43249,2622.0,2621.9,1.19394199]
[1729647059497,3.43249,2622.0,2621.8,1.19394199]
[1729647062293,8.5406467,2622.0,2621.8,1.19394199]
[1729647062506,5.1080467,2622.0,2621.8,1.19394199]
[1729647062713,3.43249,2622.0,2621.8,1.19394199]
[1729647065139,1.6755567,2622.1,2621.8,1.19394199]
[1729647065140,3.43243,2622.1,2621.8,1.19394199]
[1729647065305,3.43275,2621.8,2621.7,1.19394199]
[1729647065485,3.43288,2621.7,2621.5,1.19394199]
[1729647065824,3.43301,2621.6,2621.4,1.19394199]
[1729647066704,3.43301,2621.6,2621.3,1.19394199]
[1729647066900,1.6755567,2621.5,2621.3,1.19394199]
[1729647067101,5.1088267,2621.4,2621.2,1.19394199]
[1729647067417,3.43327,2621.4,2621.1,1.19394199]
[1729647069013,5.8974767,2621.6,2621.1,1.19394199]
[1729647069205,3.43285,2621.8,2621.3,1.6755567]
[1729647069206,0.7889,2621.8,2621.3,1.6755567]
[1729647069408,3.43265,2621.9,2621.4,3.43321]
[1729647069810,5.1082067,2621.9,2621.4,3.43321]
[1729647069997,5.1082067,2621.9,2621.5,0.7657]
[1729647070201,3.43214,2622.3,2621.5,0.7657]
[1729647070202,3.43239,2622.1,2621.6,5.1085367]
[1729647070402,3.43227,2622.2,2621.6,5.1085367]
[1729647070403,3.43234,2622.2,2621.6,5.1085367]
[1729647070627,3.43237,2622.1,2621.6,3.43295]
[1729647070803,5.1079267,2622.1,2621.6,6.8659]
[1729647071850,4.22103,2622.3,2621.9,3.43261]
[1729647072006,3.43188,2622.5,2622.1,0.7657]
[1729647072334,1.6755567,2622.4,2622.1,0.7657]
[1729647072543,5.1075267,2622.4,2622.1,0.7657]
[1729647072702,3.43188,2622.5,2622.1,0.7657]
[1729647072902,5.1074367,2622.5,2622.1,0.7657]
[1729647073343,0.7889,2622.6,2622.2,3.43221]
[1729647073519,2.4644567,2622.6,2622.2,3.43221]
[1729647074203,5.8961667,2622.6,2622.2,3.43221]
[1729647075605,1.6755567,2622.4,2622.1,0.7657]
[1729647075809,5.1075467,2622.4,2622.0,4.62630199]
[1729647076039,3.43199,2622.4,2622.0,4.62630199]
[1729647076448,1.6755567,2622.5,2622.0,4.62630199]
[1729647076639,5.1073967,2622.5,2622.0,4.62630199]
[1729647077447,1.6755567,2622.4,2622.0,4.62630199]
[1729647077955,5.1075667,2622.4,2622.0,1.19394199]
[1729647078153,5.1077267,2622.3,2621.9,1.95964199]
[1729647078646,3.43217,2622.3,2621.9,1.95964199]
[1729647078859,3.43192,2622.5,2621.9,3.63519869]
[1729647079152,5.8961667,2622.6,2622.1,3.43228]
[1729647079350,5.1072067,2622.7,2622.1,3.43228]
[1729647079514,8.5388967,2622.7,2622.1,3.43228]
[1729647079711,5.1072767,2622.6,2622.1,3.43228]
[1729647079918,5.1072767,2622.6,2622.1,4.56963076]
[1729647080130,5.1072767,2622.6,2622.1,5.76357275]
[1729647080334,0.7889,2622.8,2622.2,4.19785]
[1729647080335,5.1071267,2622.7,2622.2,4.19785]
[1729647081213,5.1071267,2622.7,2622.2,9.3055667]
[1729647081214,3.43157,2622.7,2622.2,9.3055667]
[1729647081547,3.43157,2622.7,2622.3,1.16368594]
[1729647081916,5.1071267,2622.7,2622.3,1.16368594]
[1729647082252,1.6755567,2622.7,2622.3,4.59577594]
[1729647083446,1.6755567,2622.6,2622.3,4.59577594]
[1729647083644,1.6755567,2622.6,2622.3,1.16368594]
[1729647086464,1.6755567,2622.5,2622.2,4.19792]
[1729647087551,3.43108,2623.1,2622.4,1.6755567]
[1729647087552,4.22321,2623.0,2622.4,1.6755567]
[1729647087751,5.1065067,2623.2,2622.7,3.43151]
[1729647087953,1.6755567,2623.1,2622.7,3.43151]
[1729647088138,5.1066167,2623.1,2622.6,3.4317]
[1729647088338,1.6755567,2623.0,2622.6,4.47960846]
[1729647089506,1.6755567,2623.0,2622.6,1.04790846]
[1729647089670,1.6755567,2622.8,2622.6,1.04790846]
[1729647089869,1.6755567,2622.8,2622.5,0.8297]
[1729647090265,3.43141,2622.9,2622.5,0.8297]
[1729647091669,6.83622628,2622.8,2622.2,2.02364199]
[1729647091894,3.43157,2622.8,2622.3,3.4321]
[1729647092270,3.43157,2622.7,2622.2,4.26189]
[1729647092921,3.43157,2622.8,2622.3,3.4321]
[1729647093075,3.43151,2622.8,2622.3,3.4321]
[1729647094202,0.792,2622.9,2622.4,3.43187]
[1729647094403,0.792,2623.1,2622.6,3.43159]
[1729647094570,4.2228,2623.3,2622.6,3.43159]
[1729647095374,3.43099,2623.2,2622.7,3.43153]
[1729647095774,3.43112,2623.1,2622.6,3.43159]
[1729647097503,3.43121,2623.0,2622.6,3.43159]
[1729647098104,3.43121,2623.0,2622.5,4.26152]
[1729647100711,3.43121,2623.0,2622.5,5.13111783]
[1729647110329,5.10716274,2623.0,2622.5,5.13111783]
[1729647110531,1.67595274,2622.9,2622.5,5.13111783]
[1729647110715,5.10716274,2623.0,2622.5,5.13111783]
[1729647111802,1.67595274,2622.9,2622.5,5.13111783]
[1729647112618,5.10716274,2623.0,2622.5,5.13111783]
[1729647117632,5.10716274,2623.0,2622.5,6.32505982]
[1729647120371,5.10716274,2623.0,2622.6,3.43165]
[1729647120372,1.67595274,2623.0,2622.6,3.43165]
[1729647121363,5.10714274,2623.0,2622.6,3.43165]
[1729647121567,5.10714274,2623.0,2622.5,6.32505982]
[1729647123682,5.10714274,2623.0,2622.6,1.19394199]
[1729647123887,5.10714274,2623.0,2622.5,9.75683982]
[1729647124081,5.10714274,2623.0,2622.6,1.19394199]
[1729647124688,5.10714274,2623.0,2622.6,4.62564199]
[1729647128691,5.10714274,2623.0,2622.6,1.19394199]
[1729647130684,5.87564274,2623.0,2622.6,1.19394199]
[1729647131489,5.87564274,2623.0,2622.7,1.19394199]
[1729647133774,1.67595274,2622.8,2622.7,1.19394199]
[1729647133982,3.43157,2622.7,2622.6,1.19394199]
[1729647134304,4.2002,2622.6,2622.4,1.19394199]
[1729647134473,3.43197,2622.4,2622.3,1.19394199]
[1729647134681,5.10792274,2622.4,2622.3,1.19360066]
[1729647135354,3.43197,2622.4,2622.3,1.19360066]
[1729647135847,5.10792274,2622.4,2622.3,1.19360066]
[1729647136558,5.10792274,2622.4,2622.2,1.19360066]
[1729647138575,3.43197,2622.4,2622.2,1.19360066]
[1729647138786,1.67595274,2622.5,2622.2,1.19360066]
[1729647139107,5.10782274,2622.5,2622.2,1.19360066]
[1729647140291,5.10793274,2622.4,2622.2,1.19360066]
[1729647141557,5.10805274,2622.3,2622.2,1.19360066]
[1729647141785,5.86585274,2622.3,2622.2,1.19360066]
[1729647145714,4.19053,2621.9,2621.3,4.22943]
[1729647146005,5.86648274,2621.9,2621.3,7.66277]
[1729647146703,5.10872274,2621.8,2621.3,4.22943]
[1729647148274,5.10872274,2621.8,2621.3,7.66277]
[1729647148477,5.10872274,2621.8,2621.3,4.22943]
[1729647148906,5.10872274,2621.8,2621.3,0.7961]
[1729647149187,1.68595274,2622.4,2621.1,4.22967]
[1729647149188,2.43375274,2621.5,2621.1,4.22967]
[1729647149337,0.7578,2621.5,2621.1,0.7961]
[1729647149539,0.7578,2621.5,2621.1,4.22975]
[1729647150339,4.19096,2621.5,2621.1,4.22975]
[1729647151032,4.19096,2621.5,2621.1,0.7961]
[1729647152639,0.7578,2621.5,2621.1,0.7961]
[1729647154546,4.19097,2621.5,2621.1,0.7961]
[1729647155340,4.19097,2621.5,2621.1,1.1778]
[1729647155513,4.19097,2621.5,2621.1,0.7961]
[1729647162126,3.43328,2621.4,2621.1,0.7961]
[1729647163431,5.10923274,2621.4,2621.1,0.7961]
[1729647163759,5.10955274,2621.2,2620.7,4.222]
[1729647165524,1.67595274,2620.9,2620.7,0.7879]
[1729647165848,1.67595274,2620.9,2620.5,7.03143252]
[1729647165849,5.10988274,2620.9,2620.5,0.7879]
[1729647166056,3.43393,2620.9,2620.5,0.7879]
[1729647166425,1.67595274,2620.8,2620.5,0.7879]
[1729647166625,5.11003274,2620.8,2620.5,0.7879]
[1729647168349,8.54418274,2620.8,2620.5,0.7879]
[1729647168555,5.11003274,2620.8,2620.3,4.1066354]
[1729647168755,5.11003274,2620.8,2620.3,4.8945354]
[1729647169341,1.67595274,2620.6,2620.3,1.4599054]
[1729647169675,1.67595274,2620.5,2620.3,1.4599054]
[1729647169971,3.43433,2620.6,2620.3,1.4599054]
[1729647170172,5.11028274,2620.6,2620.3,1.4599054]
[1729647170754,5.11028274,2620.6,2620.3,0.7879]
[1729647172364,3.43433,2620.6,2620.3,0.7879]
[1729647173474,5.11028274,2620.6,2620.3,0.7879]
[1729647173681,3.43433,2620.6,2620.3,0.7879]
[1729647176532,6.86878,2620.6,2620.3,0.7879]
[1729647176732,3.43433,2620.6,2620.3,0.7879]
[1729647177676,3.43394,2620.9,2620.4,1.67595274]
[1729647177982,0.7669,2621.0,2620.6,2.45265274]
[1729647178269,3.43351,2621.3,2620.8,3.434]
[1729647178430,3.4336,2621.2,2620.7,4.21081]
[1729647179077,3.43351,2621.3,2620.8,3.43404]
[1729647179370,3.43351,2621.3,2620.8,6.86803]
[1729647179575,3.43351,2621.3,2620.8,8.54393274]
[1729647179786,3.43351,2621.3,2620.8,5.10994274]
[1729647179929,3.43351,2621.3,2620.8,3.43399]
[1729647180376,3.43351,2621.3,2620.8,6.86798]
[1729647180682,1.67595274,2621.4,2621.0,0.7767]
[1729647180683,6.86674,2621.4,2621.0,0.7767]
[1729647180871,3.43337,2621.4,2621.0,0.7767]
[1729647181032,8.54268274,2621.4,2621.0,0.7767]
[1729647181232,8.54267274,2621.4,2621.0,0.7767]
[1729647181681,5.10931274,2621.4,2621.0,0.7767]
[1729647181981,3.43394,2620.9,2620.7,0.7767]
[1729647182164,3.43394,2620.9,2620.4,4.2112]
[1729647182467,3.43394,2620.9,2620.4,7.07552614]
[1729647182669,3.43394,2620.9,2620.4,10.51002614]
[1729647182875,3.43394,2620.9,2620.4,8.28497987]
[1729647183482,5.10971274,2621.1,2620.4,8.28497987]
[1729647183813,3.43376,2621.1,2620.6,4.21095]
[1729647183969,3.43376,2621.1,2620.6,5.88690274]
[1729647184168,3.43376,2621.1,2620.6,7.21726085]
[1729647184820,3.43376,2621.1,2620.6,5.54130811]
[1729647184973,2.44285274,2621.2,2620.6,5.54130811]
[1729647184974,1.67595274,2620.8,2620.6,0.7767]
[1729647185167,5.10984274,2621.0,2620.6,0.7767]
[1729647185384,8.54374274,2621.0,2620.6,0.7767]
[1729647185607,3.43394,2620.9,2620.6,0.7767]
[1729647186617,3.43394,2620.9,2620.4,4.23708]
[1729647188874,4.20052,2621.2,2620.5,3.43436]
[1729647189116,2.44315274,2621.4,2620.7,5.11004274]
[1729647189416,5.10959274,2621.2,2620.7,3.43412]
[1729647189718,3.43356,2621.2,2620.7,3.43412]
[1729647190103,5.10951274,2621.2,2620.7,6.86824]
[1729647190483,3.43356,2621.2,2620.7,6.86824]
[1729647190678,3.43356,2621.2,2620.7,3.43412]
[1729647191398,5.10951274,2621.2,2620.7,3.43412]
[1729647191806,3.43356,2621.2,2620.7,3.43412]
[1729647192013,5.10951274,2621.2,2620.7,3.43412]
[1729647192382,8.54312274,2621.2,2620.7,3.43412]
[1729647192693,5.10951274,2621.2,2620.7,3.43412]
[1729647193309,8.54315274,2621.2,2620.7,3.43412]
[1729647193483,3.43368,2621.1,2620.7,3.43412]
[1729647194216,3.43368,2621.1,2620.6,0.8025]
[1729647194217,3.43387,2621.0,2620.6,0.8025]
[1729647194625,3.43368,2621.1,2620.6,4.23674]
[1729647194831,3.4336,2621.2,2620.7,5.91256274]
[1729647194983,5.10932274,2621.4,2620.8,0.8025]
[1729647195184,3.43355,2621.2,2620.8,0.8025]
[1729647196434,1.67595274,2621.4,2620.8,4.23648]
[1729647196435,3.43352,2621.3,2620.8,4.23648]
[1729647196616,5.10947274,2621.3,2620.9,0.88589634]
[1729647197124,3.43355,2621.2,2620.9,0.88589634]
[1729647197836,3.43348,2621.3,2620.9,0.88589634]
[1729647199495,5.10943274,2621.3,2620.9,0.88589634]
[1729647201637,3.43348,2621.3,2621.0,0.8297]
[1729647202482,5.10943274,2621.3,2621.0,0.8297]
[1729647203731,3.43339,2621.4,2621.0,2.50565274]
[1729647203732,3.43328,2621.4,2621.0,2.50565274]
[1729647204045,3.43302,2621.6,2621.1,0.8297]
[1729647204214,3.43302,2621.6,2621.2,0.8297]
[1729647204401,3.43291,2621.7,2621.3,0.8297]
[1729647204731,5.10886274,2621.7,2621.3,0.8297]
[1729647205145,3.43291,2621.7,2621.3,0.8297]
[1729647206332,3.43302,2621.6,2621.3,0.8297]
[1729647210642,3.43283,2621.8,2621.3,0.8297]
[1729647210643,0.832,2622.6,2621.7,0.8297]
[1729647210793,1.67595274,2622.6,2622.2,0.8297]
[1729647210993,4.26347,2622.8,2622.2,4.26192]
[1729647211196,4.26326,2623.0,2622.4,3.43193]
[1729647211413,3.43126,2623.0,2622.5,0.8297]
[1729647211707,1.67595274,2622.8,2622.5,0.8297]
[1729647212588,3.4314,2622.9,2622.5,0.8297]
[1729647212589,1.67595274,2622.9,2622.5,0.8297]
[1729647213225,1.67595274,2622.8,2622.5,0.8297]
[1729647213555,1.67595274,2622.9,2622.5,0.8297]
[1729647213695,0.832,2623.2,2622.7,5.10747274]
[1729647213696,4.26292,2623.2,2622.7,5.10747274]
[1729647213898,3.43075,2623.4,2623.0,0.8297]
[1729647214123,5.10670274,2623.4,2623.0,0.8297]
[1729647214439,3.43073,2623.4,2623.0,0.8297]
[1729647214621,1.67595274,2623.3,2623.0,0.8297]
[1729647214999,5.10675274,2623.3,2623.0,0.8297]
[1729647216406,3.43073,2623.4,2623.0,0.8297]
[1729647217443,0.8024,2624.4,2623.1,0.90474881]
[1729647217609,3.42996,2624.0,2623.4,3.43058]
[1729647217815,3.42996,2624.0,2623.5,0.8285]
[1729647218195,6.85992,2624.0,2623.5,0.8285]
[1729647218545,3.42996,2624.0,2623.5,0.8285]
[1729647219098,1.787209,2625.0,2623.5,4.25894]
[1729647219303,3.42919,2624.6,2623.9,3.42993]
[1729647219644,3.42919,2624.6,2624.0,3.42974]
[1729647220040,3.3789,2624.8,2624.2,3.42959]
[1729647220250,1.777209,2625.0,2624.1,0.8285]
[1729647220415,3.42916,2624.6,2624.1,0.8285]
[1729647221655,6.85837,2624.6,2624.1,0.8285]
[1729647222432,3.42916,2624.6,2624.1,0.8285]
[1729647222628,3.42927,2624.5,2624.1,1.254349]
[1729647223474,3.42964,2624.2,2623.8,0.8285]
[1729647223630,3.42963,2624.2,2623.8,0.8285]
[1729647224539,3.42975,2624.1,2623.8,0.8285]
[1729647224975,6.85911,2624.3,2623.8,0.8285]
[1729647225161,3.42962,2624.2,2623.8,1.254387]
[1729647225770,3.42962,2624.2,2623.8,0.8285]
[1729647230632,3.42982,2624.1,2623.8,0.8285]
[1729647233492,3.4299,2624.0,2623.8,0.8285]
[1729647234892,3.42968,2624.2,2623.8,0.8285]
[1729647235061,3.42979,2624.1,2623.8,0.8285]
[1729647235810,3.42997,2624.0,2623.8,0.8285]
[1729647236119,6.85961,2624.1,2623.8,0.8285]
[1729647236928,3.42979,2624.1,2623.8,0.8285]
[1729647237233,3.42966,2624.2,2623.8,0.8285]
[1729647237385,3.42956,2624.3,2623.8,1.26199734]
[1729647238011,6.85912,2624.3,2623.8,4.69212734]
[1729647238625,3.42961,2624.2,2623.8,4.69212734]
[1729647239108,3.42961,2624.2,2623.8,1.26199734]
[1729647240671,3.42956,2624.3,2623.8,1.26199734]
[1729647240971,3.42961,2624.2,2623.8,1.26199734]
[1729647242121,3.42961,2624.2,2623.8,0.8285]
[1729647242315,3.42986,2624.1,2623.8,0.8285]
[1729647242471,3.42996,2624.0,2623.8,0.8285]
[1729647246299,3.42995,2624.0,2623.8,0.8285]
[1729647246506,3.43,2623.9,2623.6,0.8239]
[1729647246707,5.10466101,2623.8,2623.6,0.8239]
[1729647247000,3.43022,2623.8,2623.6,0.8239]
[1729647247310,5.10466101,2623.8,2623.6,0.8239]
[1729647247516,3.43022,2623.8,2623.6,0.8239]
[1729647247814,3.43027,2623.7,2623.6,0.8239]
[1729647248015,3.43027,2623.7,2623.4,2.01625277]
[1729647248219,3.43027,2623.7,2623.4,0.8239]
[1729647248220,5.10471101,2623.7,2623.4,0.8239]
[1729647248544,3.43027,2623.7,2623.4,2.01625277]
[1729647248890,3.4305,2623.6,2623.4,0.8239]
[1729647249089,3.43053,2623.5,2623.3,1.19235277]
[1729647249396,3.43053,2623.5,2623.4,1.19235277]
[1729647250117,3.43053,2623.5,2623.3,1.19235277]
[1729647250311,3.43053,2623.5,2623.2,2.01625277]
[1729647251277,3.4305,2623.6,2623.2,2.01625277]
[1729647251524,3.42995,2624.0,2623.4,3.43054]
[1729647251829,0.02,2624.9,2623.9,0.8239]